bitfinex-derivatives/quotes_SOLF0:USTF0_20251020
["timestamp","ask_amount","ask_price","bid_price","bid_amount"]
[1761003861912,2.66,190.39,190.34,7.5068]
[1761003863024,2.66,190.39,190.34,2.78]
[1761003863224,2.66,190.37,190.29,2.78]
[1761003863626,2.66,190.37,190.3,7.508]
[1761003864323,4.726,190.39,190.3,7.508]
[1761003864324,4.60205813,190.36,190.3,7.508]
[1761003864525,2.66,190.35,190.3,7.508]
[1761003864826,2.66,190.35,190.31,2.78]
[1761003865419,2.66,190.35,190.3,2.78]
[1761003867730,2.76,190.33,190.28,4.7285]
[1761003867915,2.76,190.33,190.28,7.4485]
[1761003868115,2.76,190.33,190.28,2.72]
[1761003868525,1.94205813,190.32,190.25,2.72]
[1761003869422,2.76,190.33,190.26,7.4489]
[1761003871927,2.76,190.33,190.27,4.7287]
[1761003872825,2.76,190.28,190.22,2.72]
[1761003873031,1.94205813,190.27,190.22,2.72]
[1761003873219,4.70205813,190.27,190.22,2.72]
[1761003874321,9.4519,190.39,190.22,2.72]
[1761003874322,1.94205813,190.29,190.22,2.72]
[1761003874518,4.70205813,190.31,190.22,2.72]
[1761003874922,4.70205813,190.31,190.24,4.7294]
[1761003875224,4.70205813,190.29,190.25,2.72]
[1761003875931,2.76,190.28,190.25,2.72]
[1761003876433,2.76,190.28,190.22,7.45]
[1761003876727,2.76,190.28,190.23,2.72]
[1761003877528,2.76,190.28,190.23,7.4496]
[1761003877732,1.94205813,190.29,190.24,2.72]
[1761003878621,4.70205813,190.29,190.24,2.72]
[1761003879528,2.76,190.29,190.24,2.72]
[1761003880227,9.42945813,190.33,190.25,2.72]
[1761003880627,2.76,190.32,190.25,2.72]
[1761003882422,2.76,190.32,190.26,2.72]
[1761003883136,1.94205813,190.3,190.26,2.72]
[1761003883522,1.94205813,190.3,190.22,1.94205813]
[1761003884635,4.70205813,190.3,190.25,4.7292]
[1761003885536,1.94205813,190.28,190.2,1.94205813]
[1761003885834,1.94205813,190.28,190.21,2.72]
[1761003887028,1.94205813,190.28,190.25,2.72]
[1761003889827,2.76,190.27,190.24,4.7294]
[1761003890138,2.76,190.27,190.24,7.4494]
[1761003890336,2.76,190.27,190.24,2.72]
[1761003890634,4.70205813,190.26,190.23,2.72]
[1761003891330,4.70205813,190.24,190.2,2.72]
[1761003893028,4.70205813,190.24,190.22,4.7299]
[1761003893426,4.70205813,190.24,190.22,7.4499]
[1761003896136,2.76,190.24,190.22,7.4499]
[1761003898741,1.94205813,190.28,190.24,2.87]
[1761003899329,1.94205813,190.28,190.25,7.5991]
[1761003899535,1.94205813,190.28,190.26,2.87]
[1761003900941,1.94205813,190.32,190.27,2.87]
[1761003901338,1.94205813,190.28,190.26,4.7288]
[1761003901534,2.71,190.27,190.24,2.87]
[1761003901850,1.94205813,190.26,190.17,2.87]
[1761003902048,1.94205813,190.24,190.17,2.87]
[1761003902239,1.94205813,190.22,190.17,2.87]
[1761003903041,1.94205813,190.22,190.2,4.7304]
[1761003904148,4.65205813,190.22,190.2,4.7304]
[1761003904541,1.94205813,190.22,190.2,7.6004]
[1761003906049,2.71,190.23,190.2,7.6004]
[1761003907045,2.71,190.23,190.11,9.4651]
[1761003907046,2.71,190.22,190.13,2.87]
[1761003907251,2.71,190.22,190.06,22.50889772]
[1761003907252,1.94205813,190.24,190.15,1.94205813]
[1761003907548,1.94205813,190.24,190.16,2.87]
[1761003908050,1.94205813,190.24,190.19,2.87]
[1761003908344,4.65205813,190.24,190.19,2.87]
[1761003909141,2.71,190.23,190.19,2.87]
[1761003910447,2.71,190.23,190.19,7.6007]
[1761003910948,4.8721007,190.32,190.22,2.87]
[1761003911146,2.71,190.33,190.26,2.87]
[1761003911446,1.94205813,190.3,190.21,1.94205813]
[1761003911655,1.94205813,190.28,190.23,2.87]
[1761003911849,2.71,190.27,190.23,2.87]
[1761003912549,7.4382,190.3,190.23,2.87]
[1761003912745,1.94205813,190.29,190.23,2.87]
[1761003913145,4.65205813,190.29,190.23,2.87]
[1761003914151,2.71,190.28,190.25,2.87]
[1761003915655,2.71,190.28,190.24,7.3994]
[1761003916356,2.71,190.28,190.25,2.67]
[1761003916842,2.71,190.28,190.22,7.4]
[1761003917439,2.71,190.28,190.22,2.67]
[1761003917944,2.71,190.28,190.23,4.7297]
[1761003918152,2.74,190.27,190.23,4.7297]
[1761003919052,2.74,190.27,190.23,7.3997]
[1761003919554,2.74,190.3,190.24,7.3994]
[1761003919752,6.62913185,190.29,190.25,2.67]
[1761003919953,2.74,190.29,190.25,2.67]
[1761003920266,2.74,190.28,190.25,2.67]
[1761003920453,2.74,190.28,190.22,7.3999]
[1761003920653,3.88913185,190.29,190.22,2.67]
[1761003920848,6.62913185,190.29,190.22,2.67]
[1761003921048,2.74,190.29,190.22,2.67]
[1761003921248,6.62913185,190.29,190.22,2.67]
[1761003921454,2.74,190.29,190.22,2.67]
[1761003921652,6.62913185,190.29,190.22,2.67]
[1761003921849,2.74,190.29,190.22,2.67]
[1761003922050,2.74,190.28,190.23,7.3997]
[1761003922254,2.74,190.27,190.23,7.3997]
[1761003922549,2.74,190.27,190.21,4.7302]
[1761003923446,2.74,190.26,190.21,4.7302]
[1761003924154,2.74,190.26,190.21,7.4002]
[1761003924455,2.74,190.26,190.21,4.7302]
[1761003924647,2.74,190.26,190.21,7.4002]
[1761003924848,2.74,190.26,190.22,2.67]
[1761003925049,2.74,190.26,190.23,2.67]
[1761003927954,2.74,190.26,190.22,7.4699]
[1761003928155,2.74,190.26,190.23,2.74]
[1761003929858,6.50913185,190.28,190.23,2.74]
[1761003930158,2.62,190.27,190.23,2.74]
[1761003932454,2.62,190.32,190.26,2.74]
[1761003932656,3.89415528,190.31,190.26,2.74]
[1761003932861,3.89419411,190.31,190.26,2.74]
[1761003933059,6.51419411,190.31,190.26,2.74]
[1761003933266,2.62,190.31,190.28,2.74]
[1761003933561,6.51419411,190.31,190.28,2.74]
[1761003933761,2.62,190.31,190.28,2.74]
[1761003933967,6.51419411,190.31,190.28,2.74]
[1761003934260,3.89419411,190.3,190.25,4.7292]
[1761003934562,2.62,190.28,190.25,7.4692]
[1761003934961,2.62,190.28,190.25,2.74]
[1761003935561,6.50659014,190.3,190.25,2.74]
[1761003935872,2.62,190.3,190.25,2.74]
[1761003936053,2.62,190.29,190.25,2.74]
[1761003937265,2.62,190.27,190.22,7.47]
[1761003937466,2.62,190.27,190.23,2.74]
[1761003939968,2.62,190.27,190.24,2.74]
[1761003940767,3.8847637,190.29,190.25,2.74]
[1761003940964,2.62,190.29,190.25,2.74]
[1761003942864,2.62,190.29,190.24,4.7294]
[1761003943366,2.62,190.29,190.25,2.74]
[1761003944667,2.62,190.32,190.26,2.74]
[1761003944864,2.62,190.3,190.26,2.74]
[1761003947970,5.64219043,190.33,190.21,2.74]
[1761003947971,3.88491883,190.32,190.21,2.74]
[1761003948269,3.88491883,190.31,190.21,2.74]
[1761003948569,3.88491883,190.32,190.21,2.74]
[1761003948768,3.88491883,190.31,190.28,2.74]
[1761003948970,3.88491883,190.32,190.28,2.74]
[1761003949371,6.50491883,190.32,190.28,2.74]
[1761003949966,6.50491883,190.32,190.28,4.7284]
[1761003950171,6.50491883,190.32,190.29,2.74]
[1761003950471,2.62,190.31,190.26,4.7289]
[1761003950669,2.62,190.31,190.26,7.4689]
[1761003951870,2.62,190.31,190.27,2.74]
[1761003952067,2.62,190.31,190.27,7.4687]
[1761003952271,2.62,190.3,190.27,7.4687]
[1761003956676,2.62,190.3,190.27,4.7287]
[1761003956974,2.62,190.3,190.28,2.74]
[1761003960078,2.62,190.3,190.27,4.7287]
[1761003960373,3.03840967,190.29,190.25,4.7291]
[1761003960679,2.75,190.28,190.25,4.7291]
[1761003961177,2.75,190.28,190.25,7.4791]
[1761003962379,2.75,190.28,190.26,2.75]
[1761003962876,6.9233285,190.29,190.26,4.729]
[1761003963182,3.03840967,190.35,190.27,2.75]
[1761003963383,3.88913313,190.34,190.27,2.75]
[1761003963678,3.88913313,190.34,190.31,2.75]
[1761003964079,3.88913313,190.35,190.31,2.75]
[1761003964267,3.88913313,190.35,190.34,2.75]
[1761003964471,3.88913313,190.37,190.34,2.75]
[1761003965682,6.63913313,190.37,190.34,2.75]
[1761003965978,6.63913313,190.37,190.27,2.75]
[1761003966974,46.61840967,190.38,190.27,2.75]
[1761003969881,49.36840967,190.38,190.35,4.7267]
[1761003970586,2.75,190.37,190.35,4.7267]
[1761003971175,46.61840967,190.38,190.35,4.7267]
[1761003971380,46.61840967,190.38,190.35,7.4767]
[1761003971577,46.61840967,190.38,190.36,2.75]
[1761003971776,43.58,190.38,190.37,2.75]
[1761003972384,3.03840967,190.45,190.39,2.75]
[1761003972691,2.75,190.43,190.39,2.75]
[1761003973282,43.58,190.44,190.39,2.75]
[1761003973485,46.33,190.44,190.39,2.75]
[1761003973787,43.58,190.44,190.41,2.75]
[1761003974689,43.58,190.44,190.43,2.75]
[1761003975693,3.66400956,190.48,190.43,2.75]
[1761003975889,2.65,190.47,190.43,2.75]
[1761003976389,2.65,190.47,190.44,2.67]
[1761003977791,2.65,190.47,190.4,7.3954]
[1761003977992,3.03840967,190.42,190.36,2.67]
[1761003978388,2.65,190.44,190.4,2.67]
[1761003978688,4.59122142,190.44,190.4,2.67]
[1761003979497,1.94122142,190.44,190.41,2.67]
[1761003980389,1.94122142,190.42,190.38,2.67]
[1761003980587,1.94122142,190.4,190.38,2.67]
[1761003982085,1.94122142,190.4,190.39,4.7258]
[1761003982798,1.94122142,190.42,190.4,2.67]
[1761003983698,1.94122142,190.44,190.37,2.67]
[1761003984402,2.65,190.47,190.37,2.67]
[1761003984594,1.94122142,190.44,190.37,2.67]
[1761003984791,1.94122142,190.44,190.42,4.725]
[1761003985694,4.59122142,190.44,190.42,4.725]
[1761003986101,2.65,190.43,190.4,4.7256]
[1761003986301,1.94122142,190.41,190.4,4.7256]
[1761003987703,44.47391355,190.49,190.33,9.4543]
[1761003987704,2.71,190.46,190.42,2.64]
[1761003987898,44.47391355,190.49,190.42,2.64]
[1761003988096,1.94122142,190.46,190.42,2.64]
[1761003988701,4.65122142,190.46,190.43,4.7247]
[1761003988900,4.65122142,190.44,190.43,4.7247]
[1761003989205,4.65122142,190.44,190.28,9.79544861]
[1761003989206,2.71,190.43,190.29,2.64]
[1761003989407,2.71,190.43,190.39,4.7257]
[1761003989408,1.94122142,190.41,190.39,4.7257]
[1761003989706,1.94122142,190.41,190.39,7.3657]
[1761003992612,1.94122142,190.41,190.4,2.64]
[1761003993704,1.94122142,190.41,190.39,4.7257]
[1761003993917,1.94122142,190.41,190.39,7.3657]
[1761003994506,1.94122142,190.41,190.4,2.64]
[1761003995716,2.71,190.46,190.4,7.3655]
[1761003996011,1.94122142,190.41,190.4,7.3655]
[1761003996427,1.94122142,190.41,190.31,2.64]
[1761003996626,2.71,190.42,190.33,2.64]
[1761003996826,1.94122142,190.41,190.33,2.64]
[1761003998026,1.94122142,190.41,190.39,4.7258]
[1761003998326,1.94122142,190.41,190.39,7.3658]
[1761003998529,1.94122142,190.41,190.4,2.64]
[1761004001033,1.94122142,190.41,190.39,4.7258]
[1761004001530,1.94122142,190.41,190.39,7.3658]
[1761004004524,2.71,190.4,190.39,4.7258]
[1761004005727,2.71,190.4,190.37,4.7264]
[1761004005936,1.94122142,190.37,190.31,2.64]
[1761004006229,1.94122142,190.34,190.31,2.64]
[1761004007029,1.94122142,190.34,190.33,2.64]
[1761004007431,1.94122142,190.36,190.33,2.64]
[1761004007929,1.94122142,190.36,190.34,4.7271]
[1761004008233,4.65122142,190.36,190.34,4.7271]
[1761004008432,2.71,190.35,190.34,4.7271]
[1761004010531,2.71,190.35,190.3,7.368]
[1761004010834,2.71,190.3,190.27,2.64]
[1761004011133,1.94122142,190.28,190.27,2.64]
[1761004011724,4.65122142,190.3,190.27,7.3688]
[1761004014433,2.71,190.29,190.27,7.3688]
[1761004014635,2.71,190.29,190.27,4.7288]
[1761004015824,2.71,190.29,190.24,2.64]
[1761004015825,1.94122142,190.28,190.25,4.7294]
[1761004016025,4.65122142,190.28,190.25,4.7294]
[1761004016231,1.94122142,190.28,190.25,4.7294]
[1761004016429,2.71,190.27,190.25,4.7294]
[1761004017032,1.94122142,190.28,190.27,4.729]
[1761004017238,2.71,190.33,190.21,2.64]
[1761004017428,4.65122142,190.33,190.24,1.94122142]
[1761004017632,1.94122142,190.35,190.27,2.65]
[1761004018027,4.84122142,190.35,190.33,4.7274]
[1761004019139,2.9,190.37,190.33,7.3774]
[1761004019636,2.9,190.37,190.33,4.7274]
[1761004019838,2.9,190.36,190.33,4.7274]
[1761004021235,2.9,190.36,190.31,4.7279]
[1761004021440,2.9,190.34,190.27,2.65]
[1761004021641,2.9,190.32,190.27,2.65]
[1761004021833,2.9,190.32,190.24,4.59122142]
[1761004022032,2.9,190.3,190.24,2.65]
[1761004022836,2.9,190.3,190.27,4.7289]
[1761004023232,2.9,190.28,190.21,2.65]
[1761004023438,2.9,190.26,190.18,1.94122142]
[1761004023636,2.9,190.24,190.18,2.65]
[1761004024043,2.9,190.24,190.21,4.7303]
[1761004025139,2.9,190.22,190.14,2.65]
[1761004025442,4.84122142,190.21,190.14,2.65]
[1761004025630,4.84122142,190.21,190.16,4.7315]
[1761004025830,2.9,190.2,190.16,4.7315]
[1761004027940,2.9,190.2,190.14,7.3822]
[1761004028141,2.9,190.2,190.14,2.65]
[1761004030042,2.9,190.2,190.14,7.382]
[1761004031152,2.9,190.18,190.11,4.59122142]
[1761004032051,2.9,190.18,190.13,7.3823]
[1761004033947,2.9,190.18,190.13,9.32352142]
[1761004035051,2.9,190.18,190.13,6.67352142]
[1761004039358,2.9,190.18,190.13,1.94122142]
[1761004039557,2.9,190.18,190.11,6.67402142]
[1761004039755,2.89,190.17,190.11,6.67402142]
[1761004040660,2.89,190.17,190.11,4.7328]
[1761004040853,7.6216,190.17,190.09,7.3833]
[1761004041055,2.89,190.16,190.09,7.3833]
[1761004041762,2.89,190.15,190.09,2.65]
[1761004041967,2.89,190.15,190.05,5.92221637]
[1761004042158,5.93221637,190.15,190.05,2.88]
[1761004042354,2.89,190.13,190.06,4.734]
[1761004043969,2.89,190.12,190.06,4.734]
[1761004044859,2.89,190.12,190.06,7.614]
[1761004045059,2.89,190.12,190.07,2.88]
[1761004045464,2.89,190.17,190.04,4.7345]
[1761004045764,2.89,190.12,190.03,2.88]
[1761004046067,2.89,190.12,189.81,136.24]
[1761004046068,2.89,190.07,189.95,2.88]
[1761004046260,2.89,190.04,189.96,7.6165]
[1761004047065,7.6248,190.04,189.96,7.6165]
[1761004047367,4.7348,190.04,189.97,2.88]
[1761004047568,2.67,190.03,189.97,2.88]
[1761004047765,2.67,190.03,189.96,4.7365]
[1761004047766,2.67,190.02,189.96,4.7365]
[1761004048268,2.67,190.02,189.94,7.5471]
[1761004050070,2.67,190.02,189.95,4.7367]
[1761004051369,2.67,190.01,189.94,2.81]
[1761004052765,2.67,190.05,189.96,2.81]
[1761004052964,2.67,190.05,189.93,2.81]
[1761004053164,2.67,190.05,189.95,5.85221637]
[1761004054070,2.67,190.05,189.96,4.7364]
[1761004054772,2.67,190.05,189.96,7.5464]
[1761004055070,2.67,190.05,189.97,7.5461]
[1761004056367,2.67,190.05,189.98,2.81]
[1761004057073,3.04221637,190.08,189.92,3.04221637]
[1761004057074,4.7336,190.08,189.99,2.81]
[1761004057267,7.4036,190.08,190.0,2.81]
[1761004057473,2.67,190.07,190.0,2.81]
[1761004059475,7.404,190.07,190.0,2.81]
[1761004059671,2.67,190.06,190.0,2.81]
[1761004059869,3.04221637,190.05,189.97,7.5463]
[1761004060070,2.67,190.04,189.97,7.5463]
[1761004063179,2.67,190.04,189.98,2.81]
[1761004064175,4.7344,190.05,189.99,2.81]
[1761004064367,2.67,190.07,189.99,2.81]
[1761004065786,2.67,190.03,189.91,2.81]
[1761004065986,2.67,190.03,189.94,2.81]
[1761004067080,4.7351,190.02,189.96,2.81]
[1761004067783,7.4051,190.02,189.96,2.81]
[1761004075288,7.77691637,190.04,189.94,2.81]
[1761004075487,4.7347,190.04,189.94,2.81]
[1761004076282,7.4047,190.04,189.94,2.81]
[1761004076981,7.4047,190.04,189.97,4.7362]
[1761004077190,7.4047,190.04,189.98,2.81]
[1761004078191,7.4047,190.04,189.98,7.546]
[1761004078581,8.59773139,190.07,189.99,2.87]
[1761004078894,3.86820397,190.06,190.0,2.87]
[1761004079087,2.87,190.07,190.0,2.87]
[1761004079990,4.7342,190.06,190.0,7.6055]
[1761004080393,2.87,190.1,190.01,2.87]
[1761004080595,2.87,190.09,190.01,2.87]
[1761004080795,2.87,190.08,190.02,2.87]
[1761004080990,3.87305686,190.08,190.02,2.87]
[1761004081187,2.87,190.12,190.02,2.87]
[1761004081383,2.87,190.1,190.02,2.87]
[1761004081595,2.87,190.09,190.02,2.87]
[1761004082394,2.87,190.09,190.03,4.7348]
[1761004082595,2.87,190.08,190.02,2.87]
[1761004083992,4.7338,190.08,190.02,2.87]
[1761004084196,2.87,190.07,190.02,2.87]
[1761004084396,2.87,190.06,190.02,2.87]
[1761004087593,6.74583259,190.06,190.02,2.87]
[1761004088687,2.87,190.05,189.99,2.87]
[1761004088893,2.87,190.03,189.99,2.87]
[1761004090094,6.74087765,190.03,189.99,2.87]
[1761004090390,2.87,190.02,189.96,7.6065]
[1761004090696,2.87,190.0,189.96,4.7365]
[1761004090998,2.87,190.0,189.97,2.87]
[1761004091186,3.87087765,190.01,189.97,2.87]
[1761004091391,6.74087765,190.02,189.97,2.87]
[1761004091598,50.0,190.0,189.97,2.87]
[1761004092894,50.0,190.0,189.99,2.87]
[1761004102418,3.647e-05,189.9,189.87,13.04119772]
[1761004102614,4.56461492,190.04,189.89,1.75461492]
[1761004102803,8.43820186,190.04,189.96,1.75461492]
[1761004104117,2.81,190.03,189.99,4.7357]
[1761004104515,2.81,190.03,189.99,6.7957]
[1761004106811,2.81,190.03,190.0,2.06]
[1761004107207,2.81,190.03,190.0,6.7955]
[1761004109217,2.81,190.03,189.98,4.736]
[1761004109419,2.81,190.03,189.98,6.796]
[1761004109613,2.81,190.03,189.98,2.06]
[1761004111119,1.75461492,190.01,189.99,4.7357]
[1761004111421,1.75461492,190.01,189.98,2.06]
[1761004111716,1.75461492,190.01,189.98,6.7959]
[1761004111915,4.39461492,190.01,189.98,6.7959]
[1761004113613,2.64,190.0,189.98,6.7959]
[1761004113806,2.64,190.0,189.98,4.7359]
[1761004114011,43.68,190.05,189.96,6.7965]
[1761004114012,4.39461492,189.99,189.96,6.7965]
[1761004115820,48.54569389,190.05,189.95,2.06]
[1761004115821,1.75461492,189.97,189.95,2.06]
[1761004121423,1.75461492,189.97,189.95,4.7367]
[1761004121631,1.75461492,189.97,189.96,2.06]
[1761004126530,1.75461492,189.99,189.96,2.06]
[1761004126731,4.39461492,189.99,189.96,2.06]
[1761004130738,4.39461492,189.99,189.96,6.7965]
[1761004130939,1.75461492,190.01,189.97,2.06]
[1761004131344,2.64,190.0,189.97,2.06]
[1761004132944,2.64,190.0,189.98,4.736]
[1761004133944,2.64,190.0,189.98,6.796]
[1761004139746,2.64,190.0,189.98,4.736]
[1761004139952,2.76,189.98,189.94,2.06]
[1761004140152,1.75461492,189.97,189.94,2.06]
[1761004140754,1.75461492,189.97,189.96,2.06]
[1761004140951,1.75461492,189.97,189.88,11.58870924]
[1761004141260,1.75461492,189.95,189.89,2.06]
[1761004141656,51.75461492,189.95,189.89,2.06]
[1761004141854,31.359,189.95,189.94,2.06]
[1761004142157,4.51461492,190.03,189.95,2.06]
[1761004142356,1.75461492,190.03,189.95,2.06]
[1761004142562,3.91885225,190.04,189.97,2.06]
[1761004142858,1.75461492,190.07,190.03,4.7347]
[1761004143160,3.91931535,190.06,190.04,2.06]
[1761004143461,3.91931535,190.08,190.04,2.06]
[1761004143666,3.91931535,190.07,190.04,2.06]
[1761004143962,1.75461492,190.1,190.04,2.06]
[1761004143963,6.67931535,190.08,190.04,2.06]
[1761004144163,2.76,190.08,190.04,2.06]
[1761004144356,6.67931535,190.08,190.04,2.06]
[1761004144559,2.76,190.08,190.04,2.06]
[1761004144754,5.67393027,190.11,190.04,2.06]
[1761004144755,6.67931535,190.1,190.06,6.7941]
[1761004144955,2.76,190.08,190.04,2.06]
[1761004145153,2.76,190.08,190.02,1.75461492]
[1761004145154,2.76,190.06,190.02,2.06]
[1761004145351,1.75461492,190.05,190.02,2.06]
[1761004145657,1.75461492,190.03,190.02,2.06]
[1761004146768,4.51461492,190.05,190.02,2.06]
[1761004149965,1.75461492,190.03,190.0,4.7354]
[1761004150165,4.51461492,190.03,189.99,2.06]
[1761004150460,1.75461492,190.01,189.99,2.06]
[1761004150661,4.51461492,190.01,189.92,2.06]
[1761004150866,1.75461492,189.99,189.92,2.06]
[1761004151960,1.75461492,189.99,189.95,4.7367]
[1761004152154,1.75461492,189.99,189.96,2.06]
[1761004152567,2.76,189.98,189.96,2.06]
[1761004152861,2.76,189.98,189.95,6.7967]
[1761004153065,2.76,189.98,189.95,2.06]
[1761004154767,1.75461492,190.01,189.95,2.06]
[1761004154968,2.76,190.02,189.95,2.06]
[1761004155955,2.76,190.02,189.96,4.7365]
[1761004156266,2.76,190.02,189.97,2.06]
[1761004156766,2.76,190.02,189.94,8.55161492]
[1761004157066,2.9,189.94,189.88,9.83409432]
[1761004157257,4.65461492,189.93,189.87,2.06]
[1761004157454,2.9,189.92,189.87,2.06]
[1761004157660,1.75461492,189.9,189.87,2.06]
[1761004157864,4.65461492,189.88,189.8,2.06]
[1761004158164,1.75461492,189.86,189.8,2.06]
[1761004158557,2.9,189.88,189.8,2.06]
[1761004158759,2.9,189.88,189.83,2.06]
[1761004159564,1.75461492,189.91,189.83,2.06]
[1761004159870,2.9,189.92,189.86,3.81461492]
[1761004161464,2.9,189.92,189.86,8.55351492]
[1761004161666,2.9,189.92,189.88,1.75461492]
[1761004162372,2.9,189.92,189.88,3.81461492]
[1761004162761,2.9,189.92,189.88,2.06]
[1761004162970,2.9,189.92,189.84,9.54334737]
[1761004165875,2.9,189.92,189.85,4.7392]
[1761004174975,2.9,189.92,189.86,6.809]
[1761004175976,2.9,189.92,189.86,2.07]
[1761004177476,2.69,189.91,189.86,2.07]
[1761004178673,2.69,189.9,189.86,2.07]
[1761004179979,2.69,189.89,189.86,2.07]
[1761004181578,0.91658546,189.96,189.84,4.7395]
[1761004181579,2.69,189.95,189.87,2.07]
[1761004181785,2.69,189.95,189.88,2.07]
[1761004182083,7.4268,189.95,189.89,2.07]
[1761004182577,2.69,189.95,189.89,2.07]
[1761004183982,2.69,189.95,189.9,2.07]
[1761004184383,4.7365,189.97,189.9,2.07]
[1761004184974,2.69,189.98,189.91,2.07]
[1761004185985,2.69,189.98,189.92,2.07]
[1761004187478,2.69,189.98,189.9,2.74394737]
[1761004187680,2.69,190.01,189.93,2.74394737]
[1761004187878,2.69,190.01,189.94,2.07]
[1761004189084,2.69,190.01,189.95,6.8067]
[1761004191886,2.69,190.01,189.96,6.8065]
[1761004192089,2.69,190.03,189.97,2.07]
[1761004194194,2.69,190.02,189.97,2.07]
[1761004195696,2.69,190.02,189.98,2.07]
[1761004196499,7.4244,190.05,189.98,2.07]
[1761004196693,3.99130791,190.04,189.98,2.07]
[1761004196894,3.99130791,190.04,189.99,2.07]
[1761004197094,2.69,190.04,189.99,2.07]
[1761004198204,2.69,190.04,189.94,2.06]
[1761004198413,2.74,190.02,189.94,2.06]
[1761004198905,2.74,190.01,189.94,2.06]
[1761004199102,2.74,189.98,189.94,2.06]
[1761004199713,2.74,189.98,189.92,4.7375]
[1761004200512,2.74,189.95,189.9,4.738]
[1761004200806,2.74394737,189.96,189.88,2.06]
[1761004200807,2.74,189.92,189.88,2.06]
[1761004202606,2.74,189.92,189.8,2.74394737]
[1761004202801,2.74,189.89,189.81,2.06]
[1761004203910,2.74,189.86,189.81,2.06]
[1761004204109,2.74,189.86,189.78,4.741]
[1761004204310,2.74,189.86,189.77,2.06]
[1761004204910,2.74,189.85,189.77,2.06]
[1761004206210,2.74,189.83,189.77,2.06]
[1761004208523,2.74,189.88,189.77,2.74394737]
[1761004208714,2.74,189.91,189.83,2.06]
[1761004209917,2.74,189.88,189.8,2.06]
[1761004210614,2.74,189.87,189.8,2.06]
[1761004210919,5.48394737,189.87,189.8,2.06]
[1761004213120,5.48394737,189.87,189.81,2.06]
[1761004214424,2.74,189.87,189.81,2.06]
[1761004215018,10.22194737,189.91,189.82,2.06]
[1761004215320,2.74,189.9,189.82,2.06]
[1761004215919,2.72,189.89,189.82,2.06]
[1761004221021,2.72,189.89,189.83,4.7398]
[1761004221227,2.72,189.92,189.81,2.74394737]
[1761004221417,2.72,189.92,189.82,2.07]
[1761004223027,2.72,189.92,189.85,2.07]
[1761004224725,4.47687767,189.92,189.85,2.07]
[1761004224925,2.72,189.91,189.85,2.07]
[1761004225130,2.72,189.91,189.86,6.809]
[1761004230536,2.72,189.91,189.87,2.07]
[1761004231930,2.72,189.91,189.84,6.8094]
[1761004232138,2.72,189.91,189.84,2.07]
[1761004232935,2.72,189.91,189.85,4.7392]